{"text_format":"3","workbook":"xlsx","n_sheets":5,"sheets":["Ballītes pārskats","Viesu saraksts","Ēdieni un dzērieni","Citas svarīgas lietas","Vietu plānojums"],"not_rendered":{"defined_names":9},"read":"whole","date_system":"1900"}

{"sheet":"Ballītes pārskats","index":0,"n_rows":22,"n_cols":8,"rows_kept":22,"merged":[[6,3,6,4],[6,5,6,6],[9,1,9,2]]}
[]
[]
[null,"Ballītes pārskats"]
[]
[]
[null,"NOTIKUMS",null,"KOPSAVILKUMS PAR VIESIEM",{"$nulls":3},{"$f":"\"NEATBILDĒJUŠIE UZAICINĀTIE: \"&Neatbildējušie_uzaicinātie","v":"NEATBILDĒJUŠIE UZAICINĀTIE: 2"}]
[null,"Vecāsmammas 75. dzimšanas diena",null,"PĀRSKATS PAR IERAŠANOS",null,"IZMAKSAS UZ VIESI",null,"BUDŽETA SUMMA"]
[{"$nulls":3},"Viesi, kas apstiprinājuši ierašanos","Kopā apstiprinājuši ierašanos","Ēdieni","Citi","Kopā"]
[null,"DATUMS",null,"Pieaugušie",{"$f":"SUMIF(Viesu_tabula[VAI IERADĪSIES?],\"=Jā\",Viesu_tabula[PIEAUGUŠIE])","v":26},{"$f":"Pārtikas_tabula[[#Totals],[IZMAKSAS UZ PIEAUGUŠO]]","v":{"v":12.690089084110037,"d":"12.69 €"}},{"$f":"PNP_izmaksas_vienam_viesim","v":{"v":18.695652173913043,"d":"18.70 €"}},{"$f":"(Dalībnieku_kopsavilkums[[#This Row],[Ēdieni]]+Dalībnieku_kopsavilkums[[#This Row],[Citi]])*Pieaugušo_kopskaits","v":{"v":816.0292727086002,"d":"816.03 €"}}]
[null,"2011-06-14",null,"Bērni",{"$f":"SUMIF(Viesu_tabula[VAI IERADĪSIES?],\"=Jā\",Viesu_tabula[BĒRNI])","v":20},{"$f":"Pārtikas_tabula[[#Totals],[IZMAKSAS UZ BĒRNU]]","v":{"v":7.252884190656953,"d":"7.25 €"}},{"$f":"PNP_izmaksas_vienam_viesim","v":{"v":18.695652173913043,"d":"18.70 €"}},{"$f":"(Dalībnieku_kopsavilkums[[#This Row],[Ēdieni]]+Dalībnieku_kopsavilkums[[#This Row],[Citi]])*Bērnu_kopskaits","v":{"v":518.9707272914,"d":"518.97 €"}}]
[{"$nulls":3},"Kopā",{"$f":"SUBTOTAL(109,Dalībnieku_kopsavilkums[Kopā apstiprinājuši ierašanos])","v":46},{"$f":"\"Vid.     \"&TEXT(SUBTOTAL(101,Dalībnieku_kopsavilkums[Ēdieni]),\"# ##0,00\\ [$€-1]\")","v":"Vid.     9,97 €"},{"$f":"\"Vid.     \"&TEXT(SUBTOTAL(101,Dalībnieku_kopsavilkums[Citi]),\"# ##0,00\\ [$€-1]\")","v":"Vid.     18,70 €"},{"$f":"SUBTOTAL(109,Dalībnieku_kopsavilkums[Kopā])","v":{"v":1335,"d":"1,335.00 €"}}]
[null,"LAIKS"]
[null,"No plkst. 14:00 līdz 16:00"]
[]
[null,"VIETA"]
[null,"Krustmātes Indras māja",null,"BUDŽETA KOPSAVILKUMS"]
[{"$nulls":3},"POZĪCIJA","SKAITS","BUDŽETA SUMMA","KOPĒJĀS IZMAKSAS","STARPĪBA"]
[{"$nulls":3},"Ēdieni un dzērieni",{"$f":"COUNTA(Pārtikas_tabula[ĒDIENA VAI DZĒRIENA POZĪCIJA1])","v":18},{"v":500,"d":"500.00 €"},{"$f":"Pārtikas_tabula[[#Totals],[KOPĒJĀS IZMAKSAS]]","v":{"v":475,"d":"475.00 €"}},{"$f":"Budžeta_pārskats[[#This Row],[BUDŽETA SUMMA]]-Budžeta_pārskats[[#This Row],[KOPĒJĀS IZMAKSAS]]","v":{"v":25,"d":"25.00 €"}}]
[{"$nulls":3},{"$f":"Tabula_1_virsraksts","v":"Aprīkojums un piederumi"},{"$f":"COUNTA(Tabula_1_budžets[Aprīkojums un piederumi])","v":7},{"v":400,"d":"400.00 €"},{"$f":"Tabula_1_budžets[[#Totals],[Vērtība]]","v":{"v":400,"d":"400.00 €"}},{"$f":"Budžeta_pārskats[[#This Row],[BUDŽETA SUMMA]]-Budžeta_pārskats[[#This Row],[KOPĒJĀS IZMAKSAS]]","v":{"v":0,"d":"0.00 €"}}]
[{"$nulls":3},{"$f":"Tabula_2_virsraksts","v":"Rotājumi"},{"$f":"COUNTA(Tabula_2_budžets[Rotājumi])","v":4},{"v":150,"d":"150.00 €"},{"$f":"Tabula_2_budžets[[#Totals],[Vērtība]]","v":{"v":175,"d":"175.00 €"}},{"$f":"Budžeta_pārskats[[#This Row],[BUDŽETA SUMMA]]-Budžeta_pārskats[[#This Row],[KOPĒJĀS IZMAKSAS]]","v":{"v":-25,"d":"-25.00 €"}}]
[{"$nulls":3},{"$f":"Tabula_3_virsraksts","v":"Citi"},{"$f":"COUNTA(Tabula_3_budžets[Citi])","v":4},{"v":300,"d":"300.00 €"},{"$f":"Tabula_3_budžets[[#Totals],[Vērtība]]","v":{"v":285,"d":"285.00 €"}},{"$f":"Budžeta_pārskats[[#This Row],[BUDŽETA SUMMA]]-Budžeta_pārskats[[#This Row],[KOPĒJĀS IZMAKSAS]]","v":{"v":15,"d":"15.00 €"}}]
[{"$nulls":3},"Kopā",{"$f":"SUBTOTAL(109,Budžeta_pārskats[SKAITS])","v":33},{"$f":"SUBTOTAL(109,Budžeta_pārskats[BUDŽETA SUMMA])","v":{"v":1350,"d":"1,350.00 €"}},{"$f":"SUBTOTAL(109,Budžeta_pārskats[KOPĒJĀS IZMAKSAS])","v":{"v":1335,"d":"1,335.00 €"}},{"$f":"Budžeta_pārskats[[#Totals],[BUDŽETA SUMMA]]-Budžeta_pārskats[[#Totals],[KOPĒJĀS IZMAKSAS]]","v":{"v":15,"d":"15.00 €"}}]

{"sheet":"Viesu saraksts","index":1,"n_rows":22,"n_cols":12,"rows_kept":22}
[]
[]
[null,"Viesu saraksts"]
[]
[]
[]
[null,"VĀRDS, UZVĀRDS","ADRESE","PILSĒTA","NOVADS","PASTA INDEKSS","TĀLRUNIS","E-PASTS","VAI IERADĪSIES?","BĒRNI","PIEAUGUŠIE","KOPĀ"]
[null,"1. ģimene","1. adrese","1. pilsēta","1. novads","1. pasta indekss","1. tālrunis","1. e-pasta adrese","Nē",2,2,{"$f":"SUM(Viesu_tabula[[#This Row],[BĒRNI]:[PIEAUGUŠIE]])","v":4}]
[null,"2. ģimene","2. adrese","2. pilsēta","2. novads","2. pasta indekss","2. tālrunis","2. e-pasta adrese","Jā",1,1,{"$f":"SUM(Viesu_tabula[[#This Row],[BĒRNI]:[PIEAUGUŠIE]])","v":2}]
[null,"3. ģimene","3. adrese","3. pilsēta","3. novads","3. pasta indekss","3. tālrunis","3. e-pasta adrese","Jā",3,3,{"$f":"SUM(Viesu_tabula[[#This Row],[BĒRNI]:[PIEAUGUŠIE]])","v":6}]
[null,"4. ģimene","4. adrese","4. pilsēta","4. novads","4. pasta indekss","4. tālrunis","4. e-pasta adrese",null,null,2,{"$f":"SUM(Viesu_tabula[[#This Row],[BĒRNI]:[PIEAUGUŠIE]])","v":2}]
[null,"5. ģimene","5. adrese","5. pilsēta","5. novads","5. pasta indekss","5. tālrunis","5. e-pasta adrese","Jā",4,3,{"$f":"SUM(Viesu_tabula[[#This Row],[BĒRNI]:[PIEAUGUŠIE]])","v":7}]
[null,"6. ģimene","6. adrese","6. pilsēta","6. novads","6. pasta indekss","6. tālrunis","6. e-pasta adrese","Jā",2,2,{"$f":"SUM(Viesu_tabula[[#This Row],[BĒRNI]:[PIEAUGUŠIE]])","v":4}]
[null,"7. ģimene","7. adrese","7. pilsēta","7. novads","7. pasta indekss","7. tālrunis","7. e-pasta adrese","Jā",1,4,{"$f":"SUM(Viesu_tabula[[#This Row],[BĒRNI]:[PIEAUGUŠIE]])","v":5}]
[null,"8. ģimene","8. adrese","8. pilsēta","8. novads","8. pasta indekss","8. tālrunis","8. e-pasta adrese","Nē",5,3,{"$f":"SUM(Viesu_tabula[[#This Row],[BĒRNI]:[PIEAUGUŠIE]])","v":8}]
[null,"9. ģimene","9. adrese","9. pilsēta","9. novads","9. pasta indekss","9. tālrunis","9. e-pasta adrese","Jā",3,2,{"$f":"SUM(Viesu_tabula[[#This Row],[BĒRNI]:[PIEAUGUŠIE]])","v":5}]
[null,"10. ģimene","10. adrese","10. pilsēta","10. novads","10. pasta indekss","10. tālrunis","10. e-pasta adrese","Jā",null,4,{"$f":"SUM(Viesu_tabula[[#This Row],[BĒRNI]:[PIEAUGUŠIE]])","v":4}]
[null,"11. ģimene","11. adrese","11. pilsēta","11. novads","11. pasta indekss","11. tālrunis","11. e-pasta adrese","Jā",3,5,{"$f":"SUM(Viesu_tabula[[#This Row],[BĒRNI]:[PIEAUGUŠIE]])","v":8}]
[null,"12. ģimene","12. adrese","12. pilsēta","12. novads","12. pasta indekss","12. tālrunis","12. e-pasta adrese","Nē",2,3,{"$f":"SUM(Viesu_tabula[[#This Row],[BĒRNI]:[PIEAUGUŠIE]])","v":5}]
[null,"13. ģimene","13. adrese","13. pilsēta","13. novads","13. pasta indekss","13. tālrunis","13. e-pasta adrese","Jā",3,2,{"$f":"SUM(Viesu_tabula[[#This Row],[BĒRNI]:[PIEAUGUŠIE]])","v":5}]
[null,"14. ģimene","14. adrese","14. pilsēta","14. novads","14. pasta indekss","14. tālrunis","14. e-pasta adrese","Nē",null,1,{"$f":"SUM(Viesu_tabula[[#This Row],[BĒRNI]:[PIEAUGUŠIE]])","v":1}]
[null,"15. ģimene","15. adrese","15. pilsēta","15. novads","15. pasta indekss","15. tālrunis","15. e-pasta adrese",null,null,2,{"$f":"SUM(Viesu_tabula[[#This Row],[BĒRNI]:[PIEAUGUŠIE]])","v":2}]

{"sheet":"Ēdieni un dzērieni","index":2,"n_rows":25,"n_cols":10,"rows_kept":25}
[]
[]
[null,"Ēdieni un dzērieni"]
[]
[null,"Ievadiet izmaksas un aprēķinātās porcijas, lai automātiski aprēķinātu kopējo gabalu skaitu un porcijas izmaksas, pamatojoties uz kopējo dalībnieku skaitu."]
[null,"ĒDIENA VAI DZĒRIENA POZĪCIJA1","KOPĒJĀS IZMAKSAS","BĒRNA PORCIJA","PIEAUGUŠĀ PORCIJA","PORCIJAS KOPĀ","PORCIJAS IZMAKSAS","IZMAKSAS UZ BĒRNU","IZMAKSAS UZ PIEAUGUŠO","PIEZĪMES"]
[null,"Limonādes",{"v":15,"d":"15.00 €"},0.5,2,{"$f":"(Pārtikas_tabula[[#This Row],[BĒRNA PORCIJA]]*Bērnu_kopskaits)+(Pārtikas_tabula[[#This Row],[PIEAUGUŠĀ PORCIJA]]*Pieaugušo_kopskaits)","v":62},{"$f":"IFERROR(Pārtikas_tabula[[#This Row],[KOPĒJĀS IZMAKSAS]]/Pārtikas_tabula[[#This Row],[PORCIJAS KOPĀ]],\"\")","v":{"v":0.24193548387096775,"d":"0.24 €"}},{"$f":"IFERROR(Pārtikas_tabula[[#This Row],[PORCIJAS IZMAKSAS]]*Pārtikas_tabula[[#This Row],[BĒRNA PORCIJA]],\"\")","v":{"v":0.12096774193548387,"d":"0.12 €"}},{"$f":"IFERROR(Pārtikas_tabula[[#This Row],[PORCIJAS IZMAKSAS]]*Pārtikas_tabula[[#This Row],[PIEAUGUŠĀ PORCIJA]],\"\")","v":{"v":0.4838709677419355,"d":"0.48 €"}},"2 litru pudeles"]
[null,"Sulas kārbas",{"v":15,"d":"15.00 €"},2,0,{"$f":"(Pārtikas_tabula[[#This Row],[BĒRNA PORCIJA]]*Bērnu_kopskaits)+(Pārtikas_tabula[[#This Row],[PIEAUGUŠĀ PORCIJA]]*Pieaugušo_kopskaits)","v":40},{"$f":"IFERROR(Pārtikas_tabula[[#This Row],[KOPĒJĀS IZMAKSAS]]/Pārtikas_tabula[[#This Row],[PORCIJAS KOPĀ]],\"\")","v":{"v":0.375,"d":"0.38 €"}},{"$f":"IFERROR(Pārtikas_tabula[[#This Row],[PORCIJAS IZMAKSAS]]*Pārtikas_tabula[[#This Row],[BĒRNA PORCIJA]],\"\")","v":{"v":0.75,"d":"0.75 €"}},{"$f":"IFERROR(Pārtikas_tabula[[#This Row],[PORCIJAS IZMAKSAS]]*Pārtikas_tabula[[#This Row],[PIEAUGUŠĀ PORCIJA]],\"\")","v":{"v":0,"d":"0.00 €"}},"Ābolu un gaišo vīnogu"]
[null,"Vīns",{"v":50,"d":"50.00 €"},0,2,{"$f":"(Pārtikas_tabula[[#This Row],[BĒRNA PORCIJA]]*Bērnu_kopskaits)+(Pārtikas_tabula[[#This Row],[PIEAUGUŠĀ PORCIJA]]*Pieaugušo_kopskaits)","v":52},{"$f":"IFERROR(Pārtikas_tabula[[#This Row],[KOPĒJĀS IZMAKSAS]]/Pārtikas_tabula[[#This Row],[PORCIJAS KOPĀ]],\"\")","v":{"v":0.9615384615384616,"d":"0.96 €"}},{"$f":"IFERROR(Pārtikas_tabula[[#This Row],[PORCIJAS IZMAKSAS]]*Pārtikas_tabula[[#This Row],[BĒRNA PORCIJA]],\"\")","v":{"v":0,"d":"0.00 €"}},{"$f":"IFERROR(Pārtikas_tabula[[#This Row],[PORCIJAS IZMAKSAS]]*Pārtikas_tabula[[#This Row],[PIEAUGUŠĀ PORCIJA]],\"\")","v":{"v":1.9230769230769231,"d":"1.92 €"}}]
[null,"Torte",{"v":75,"d":"75.00 €"},1,1,{"$f":"(Pārtikas_tabula[[#This Row],[BĒRNA PORCIJA]]*Bērnu_kopskaits)+(Pārtikas_tabula[[#This Row],[PIEAUGUŠĀ PORCIJA]]*Pieaugušo_kopskaits)","v":46},{"$f":"IFERROR(Pārtikas_tabula[[#This Row],[KOPĒJĀS IZMAKSAS]]/Pārtikas_tabula[[#This Row],[PORCIJAS KOPĀ]],\"\")","v":{"v":1.6304347826086956,"d":"1.63 €"}},{"$f":"IFERROR(Pārtikas_tabula[[#This Row],[PORCIJAS IZMAKSAS]]*Pārtikas_tabula[[#This Row],[BĒRNA PORCIJA]],\"\")","v":{"v":1.6304347826086956,"d":"1.63 €"}},{"$f":"IFERROR(Pārtikas_tabula[[#This Row],[PORCIJAS IZMAKSAS]]*Pārtikas_tabula[[#This Row],[PIEAUGUŠĀ PORCIJA]],\"\")","v":{"v":1.6304347826086956,"d":"1.63 €"}},"Jāpasūta beķerejā"]
[null,"Saldējums",{"v":20,"d":"20.00 €"},1,1.5,{"$f":"(Pārtikas_tabula[[#This Row],[BĒRNA PORCIJA]]*Bērnu_kopskaits)+(Pārtikas_tabula[[#This Row],[PIEAUGUŠĀ PORCIJA]]*Pieaugušo_kopskaits)","v":59},{"$f":"IFERROR(Pārtikas_tabula[[#This Row],[KOPĒJĀS IZMAKSAS]]/Pārtikas_tabula[[#This Row],[PORCIJAS KOPĀ]],\"\")","v":{"v":0.3389830508474576,"d":"0.34 €"}},{"$f":"IFERROR(Pārtikas_tabula[[#This Row],[PORCIJAS IZMAKSAS]]*Pārtikas_tabula[[#This Row],[BĒRNA PORCIJA]],\"\")","v":{"v":0.3389830508474576,"d":"0.34 €"}},{"$f":"IFERROR(Pārtikas_tabula[[#This Row],[PORCIJAS IZMAKSAS]]*Pārtikas_tabula[[#This Row],[PIEAUGUŠĀ PORCIJA]],\"\")","v":{"v":0.5084745762711864,"d":"0.51 €"}}]
[null,"Pudiņa trauciņi",{"v":15,"d":"15.00 €"},1,0,{"$f":"(Pārtikas_tabula[[#This Row],[BĒRNA PORCIJA]]*Bērnu_kopskaits)+(Pārtikas_tabula[[#This Row],[PIEAUGUŠĀ PORCIJA]]*Pieaugušo_kopskaits)","v":20},{"$f":"IFERROR(Pārtikas_tabula[[#This Row],[KOPĒJĀS IZMAKSAS]]/Pārtikas_tabula[[#This Row],[PORCIJAS KOPĀ]],\"\")","v":{"v":0.75,"d":"0.75 €"}},{"$f":"IFERROR(Pārtikas_tabula[[#This Row],[PORCIJAS IZMAKSAS]]*Pārtikas_tabula[[#This Row],[BĒRNA PORCIJA]],\"\")","v":{"v":0.75,"d":"0.75 €"}},{"$f":"IFERROR(Pārtikas_tabula[[#This Row],[PORCIJAS IZMAKSAS]]*Pārtikas_tabula[[#This Row],[PIEAUGUŠĀ PORCIJA]],\"\")","v":{"v":0,"d":"0.00 €"}},"Jānopērk iepakotie trauciņi: vaniļas un šokolādes"]
[null,"Pildītas sēnes",{"v":32,"d":"32.00 €"},1,2,{"$f":"(Pārtikas_tabula[[#This Row],[BĒRNA PORCIJA]]*Bērnu_kopskaits)+(Pārtikas_tabula[[#This Row],[PIEAUGUŠĀ PORCIJA]]*Pieaugušo_kopskaits)","v":72},{"$f":"IFERROR(Pārtikas_tabula[[#This Row],[KOPĒJĀS IZMAKSAS]]/Pārtikas_tabula[[#This Row],[PORCIJAS KOPĀ]],\"\")","v":{"v":0.4444444444444444,"d":"0.44 €"}},{"$f":"IFERROR(Pārtikas_tabula[[#This Row],[PORCIJAS IZMAKSAS]]*Pārtikas_tabula[[#This Row],[BĒRNA PORCIJA]],\"\")","v":{"v":0.4444444444444444,"d":"0.44 €"}},{"$f":"IFERROR(Pārtikas_tabula[[#This Row],[PORCIJAS IZMAKSAS]]*Pārtikas_tabula[[#This Row],[PIEAUGUŠĀ PORCIJA]],\"\")","v":{"v":0.8888888888888888,"d":"0.89 €"}},"Šampinjoni pildīti ar sieru un desu"]
[null,"Maizītes",{"v":22,"d":"22.00 €"},0,3,{"$f":"(Pārtikas_tabula[[#This Row],[BĒRNA PORCIJA]]*Bērnu_kopskaits)+(Pārtikas_tabula[[#This Row],[PIEAUGUŠĀ PORCIJA]]*Pieaugušo_kopskaits)","v":78},{"$f":"IFERROR(Pārtikas_tabula[[#This Row],[KOPĒJĀS IZMAKSAS]]/Pārtikas_tabula[[#This Row],[PORCIJAS KOPĀ]],\"\")","v":{"v":0.28205128205128205,"d":"0.28 €"}},{"$f":"IFERROR(Pārtikas_tabula[[#This Row],[PORCIJAS IZMAKSAS]]*Pārtikas_tabula[[#This Row],[BĒRNA PORCIJA]],\"\")","v":{"v":0,"d":"0.00 €"}},{"$f":"IFERROR(Pārtikas_tabula[[#This Row],[PORCIJAS IZMAKSAS]]*Pārtikas_tabula[[#This Row],[PIEAUGUŠĀ PORCIJA]],\"\")","v":{"v":0.8461538461538461,"d":"0.85 €"}},"Tomāti un baziliks "]
[null,"Žāvēts lasis",{"v":50,"d":"50.00 €"},1,2,{"$f":"(Pārtikas_tabula[[#This Row],[BĒRNA PORCIJA]]*Bērnu_kopskaits)+(Pārtikas_tabula[[#This Row],[PIEAUGUŠĀ PORCIJA]]*Pieaugušo_kopskaits)","v":72},{"$f":"IFERROR(Pārtikas_tabula[[#This Row],[KOPĒJĀS IZMAKSAS]]/Pārtikas_tabula[[#This Row],[PORCIJAS KOPĀ]],\"\")","v":{"v":0.6944444444444444,"d":"0.69 €"}},{"$f":"IFERROR(Pārtikas_tabula[[#This Row],[PORCIJAS IZMAKSAS]]*Pārtikas_tabula[[#This Row],[BĒRNA PORCIJA]],\"\")","v":{"v":0.6944444444444444,"d":"0.69 €"}},{"$f":"IFERROR(Pārtikas_tabula[[#This Row],[PORCIJAS IZMAKSAS]]*Pārtikas_tabula[[#This Row],[PIEAUGUŠĀ PORCIJA]],\"\")","v":{"v":1.3888888888888888,"d":"1.39 €"}}]
[null,"Baranciņas",{"v":20,"d":"20.00 €"},1,2,{"$f":"(Pārtikas_tabula[[#This Row],[BĒRNA PORCIJA]]*Bērnu_kopskaits)+(Pārtikas_tabula[[#This Row],[PIEAUGUŠĀ PORCIJA]]*Pieaugušo_kopskaits)","v":72},{"$f":"IFERROR(Pārtikas_tabula[[#This Row],[KOPĒJĀS IZMAKSAS]]/Pārtikas_tabula[[#This Row],[PORCIJAS KOPĀ]],\"\")","v":{"v":0.2777777777777778,"d":"0.28 €"}},{"$f":"IFERROR(Pārtikas_tabula[[#This Row],[PORCIJAS IZMAKSAS]]*Pārtikas_tabula[[#This Row],[BĒRNA PORCIJA]],\"\")","v":{"v":0.2777777777777778,"d":"0.28 €"}},{"$f":"IFERROR(Pārtikas_tabula[[#This Row],[PORCIJAS IZMAKSAS]]*Pārtikas_tabula[[#This Row],[PIEAUGUŠĀ PORCIJA]],\"\")","v":{"v":0.5555555555555556,"d":"0.56 €"}},"4 maisiņi, dažādas"]
[null,"Kausētais siers",{"v":10,"d":"10.00 €"},1,2,{"$f":"(Pārtikas_tabula[[#This Row],[BĒRNA PORCIJA]]*Bērnu_kopskaits)+(Pārtikas_tabula[[#This Row],[PIEAUGUŠĀ PORCIJA]]*Pieaugušo_kopskaits)","v":72},{"$f":"IFERROR(Pārtikas_tabula[[#This Row],[KOPĒJĀS IZMAKSAS]]/Pārtikas_tabula[[#This Row],[PORCIJAS KOPĀ]],\"\")","v":{"v":0.1388888888888889,"d":"0.14 €"}},{"$f":"IFERROR(Pārtikas_tabula[[#This Row],[PORCIJAS IZMAKSAS]]*Pārtikas_tabula[[#This Row],[BĒRNA PORCIJA]],\"\")","v":{"v":0.1388888888888889,"d":"0.14 €"}},{"$f":"IFERROR(Pārtikas_tabula[[#This Row],[PORCIJAS IZMAKSAS]]*Pārtikas_tabula[[#This Row],[PIEAUGUŠĀ PORCIJA]],\"\")","v":{"v":0.2777777777777778,"d":"0.28 €"}},"2 lielās kārbas"]
[null,"Kaperi",{"v":12,"d":"12.00 €"},1,2,{"$f":"(Pārtikas_tabula[[#This Row],[BĒRNA PORCIJA]]*Bērnu_kopskaits)+(Pārtikas_tabula[[#This Row],[PIEAUGUŠĀ PORCIJA]]*Pieaugušo_kopskaits)","v":72},{"$f":"IFERROR(Pārtikas_tabula[[#This Row],[KOPĒJĀS IZMAKSAS]]/Pārtikas_tabula[[#This Row],[PORCIJAS KOPĀ]],\"\")","v":{"v":0.16666666666666666,"d":"0.17 €"}},{"$f":"IFERROR(Pārtikas_tabula[[#This Row],[PORCIJAS IZMAKSAS]]*Pārtikas_tabula[[#This Row],[BĒRNA PORCIJA]],\"\")","v":{"v":0.16666666666666666,"d":"0.17 €"}},{"$f":"IFERROR(Pārtikas_tabula[[#This Row],[PORCIJAS IZMAKSAS]]*Pārtikas_tabula[[#This Row],[PIEAUGUŠĀ PORCIJA]],\"\")","v":{"v":0.3333333333333333,"d":"0.33 €"}},"3 skārdenes"]
[null,"Vistu spārniņi",{"v":45,"d":"45.00 €"},2,4,{"$f":"(Pārtikas_tabula[[#This Row],[BĒRNA PORCIJA]]*Bērnu_kopskaits)+(Pārtikas_tabula[[#This Row],[PIEAUGUŠĀ PORCIJA]]*Pieaugušo_kopskaits)","v":144},{"$f":"IFERROR(Pārtikas_tabula[[#This Row],[KOPĒJĀS IZMAKSAS]]/Pārtikas_tabula[[#This Row],[PORCIJAS KOPĀ]],\"\")","v":{"v":0.3125,"d":"0.31 €"}},{"$f":"IFERROR(Pārtikas_tabula[[#This Row],[PORCIJAS IZMAKSAS]]*Pārtikas_tabula[[#This Row],[BĒRNA PORCIJA]],\"\")","v":{"v":0.625,"d":"0.63 €"}},{"$f":"IFERROR(Pārtikas_tabula[[#This Row],[PORCIJAS IZMAKSAS]]*Pārtikas_tabula[[#This Row],[PIEAUGUŠĀ PORCIJA]],\"\")","v":{"v":1.25,"d":"1.25 €"}},"Jānopērk vietējā gaļas veikalā"]
[null,"Pastēte",{"v":10,"d":"10.00 €"},4,6,{"$f":"(Pārtikas_tabula[[#This Row],[BĒRNA PORCIJA]]*Bērnu_kopskaits)+(Pārtikas_tabula[[#This Row],[PIEAUGUŠĀ PORCIJA]]*Pieaugušo_kopskaits)","v":236},{"$f":"IFERROR(Pārtikas_tabula[[#This Row],[KOPĒJĀS IZMAKSAS]]/Pārtikas_tabula[[#This Row],[PORCIJAS KOPĀ]],\"\")","v":{"v":0.0423728813559322,"d":"0.04 €"}},{"$f":"IFERROR(Pārtikas_tabula[[#This Row],[PORCIJAS IZMAKSAS]]*Pārtikas_tabula[[#This Row],[BĒRNA PORCIJA]],\"\")","v":{"v":0.1694915254237288,"d":"0.17 €"}},{"$f":"IFERROR(Pārtikas_tabula[[#This Row],[PORCIJAS IZMAKSAS]]*Pārtikas_tabula[[#This Row],[PIEAUGUŠĀ PORCIJA]],\"\")","v":{"v":0.2542372881355932,"d":"0.25 €"}},"Jāpagatavo iepriekšējā vakarā"]
[null,"Kraukšķmaizītes ar sieru",{"v":14,"d":"14.00 €"},4,6,{"$f":"(Pārtikas_tabula[[#This Row],[BĒRNA PORCIJA]]*Bērnu_kopskaits)+(Pārtikas_tabula[[#This Row],[PIEAUGUŠĀ PORCIJA]]*Pieaugušo_kopskaits)","v":236},{"$f":"IFERROR(Pārtikas_tabula[[#This Row],[KOPĒJĀS IZMAKSAS]]/Pārtikas_tabula[[#This Row],[PORCIJAS KOPĀ]],\"\")","v":{"v":0.059322033898305086,"d":"0.06 €"}},{"$f":"IFERROR(Pārtikas_tabula[[#This Row],[PORCIJAS IZMAKSAS]]*Pārtikas_tabula[[#This Row],[BĒRNA PORCIJA]],\"\")","v":{"v":0.23728813559322035,"d":"0.24 €"}},{"$f":"IFERROR(Pārtikas_tabula[[#This Row],[PORCIJAS IZMAKSAS]]*Pārtikas_tabula[[#This Row],[PIEAUGUŠĀ PORCIJA]],\"\")","v":{"v":0.3559322033898305,"d":"0.36 €"}},"Jāpagatavo iepriekšējā vakarā"]
[null,"Dažādi dārzeņi",{"v":30,"d":"30.00 €"},4,10,{"$f":"(Pārtikas_tabula[[#This Row],[BĒRNA PORCIJA]]*Bērnu_kopskaits)+(Pārtikas_tabula[[#This Row],[PIEAUGUŠĀ PORCIJA]]*Pieaugušo_kopskaits)","v":340},{"$f":"IFERROR(Pārtikas_tabula[[#This Row],[KOPĒJĀS IZMAKSAS]]/Pārtikas_tabula[[#This Row],[PORCIJAS KOPĀ]],\"\")","v":{"v":0.08823529411764706,"d":"0.09 €"}},{"$f":"IFERROR(Pārtikas_tabula[[#This Row],[PORCIJAS IZMAKSAS]]*Pārtikas_tabula[[#This Row],[BĒRNA PORCIJA]],\"\")","v":{"v":0.35294117647058826,"d":"0.35 €"}},{"$f":"IFERROR(Pārtikas_tabula[[#This Row],[PORCIJAS IZMAKSAS]]*Pārtikas_tabula[[#This Row],[PIEAUGUŠĀ PORCIJA]],\"\")","v":{"v":0.8823529411764707,"d":"0.88 €"}},"Burkānu stienīši, selerija, brokoļi, puķkāposti, sarkanā un zaļā paprika"]
[null,"Biezpiena bumbiņas",{"v":15,"d":"15.00 €"},5,10,{"$f":"(Pārtikas_tabula[[#This Row],[BĒRNA PORCIJA]]*Bērnu_kopskaits)+(Pārtikas_tabula[[#This Row],[PIEAUGUŠĀ PORCIJA]]*Pieaugušo_kopskaits)","v":360},{"$f":"IFERROR(Pārtikas_tabula[[#This Row],[KOPĒJĀS IZMAKSAS]]/Pārtikas_tabula[[#This Row],[PORCIJAS KOPĀ]],\"\")","v":{"v":0.041666666666666664,"d":"0.04 €"}},{"$f":"IFERROR(Pārtikas_tabula[[#This Row],[PORCIJAS IZMAKSAS]]*Pārtikas_tabula[[#This Row],[BĒRNA PORCIJA]],\"\")","v":{"v":0.20833333333333331,"d":"0.21 €"}},{"$f":"IFERROR(Pārtikas_tabula[[#This Row],[PORCIJAS IZMAKSAS]]*Pārtikas_tabula[[#This Row],[PIEAUGUŠĀ PORCIJA]],\"\")","v":{"v":0.41666666666666663,"d":"0.42 €"}},"Dažādi: kausētais siers, pikantais siers ar riekstiem"]
[null,"Krekeri",{"v":25,"d":"25.00 €"},5,10,{"$f":"(Pārtikas_tabula[[#This Row],[BĒRNA PORCIJA]]*Bērnu_kopskaits)+(Pārtikas_tabula[[#This Row],[PIEAUGUŠĀ PORCIJA]]*Pieaugušo_kopskaits)","v":360},{"$f":"IFERROR(Pārtikas_tabula[[#This Row],[KOPĒJĀS IZMAKSAS]]/Pārtikas_tabula[[#This Row],[PORCIJAS KOPĀ]],\"\")","v":{"v":0.06944444444444445,"d":"0.07 €"}},{"$f":"IFERROR(Pārtikas_tabula[[#This Row],[PORCIJAS IZMAKSAS]]*Pārtikas_tabula[[#This Row],[BĒRNA PORCIJA]],\"\")","v":{"v":0.3472222222222222,"d":"0.35 €"}},{"$f":"IFERROR(Pārtikas_tabula[[#This Row],[PORCIJAS IZMAKSAS]]*Pārtikas_tabula[[#This Row],[PIEAUGUŠĀ PORCIJA]],\"\")","v":{"v":0.6944444444444444,"d":"0.69 €"}},"Dažādi"]
[null,"Kopā",{"$f":"SUBTOTAL(109,Pārtikas_tabula[KOPĒJĀS IZMAKSAS])","v":{"v":475,"d":"475.00 €"}},{"$f":"SUBTOTAL(109,Pārtikas_tabula[BĒRNA PORCIJA])","v":34.5},{"$f":"SUBTOTAL(109,Pārtikas_tabula[PIEAUGUŠĀ PORCIJA])","v":65.5},{"$f":"SUBTOTAL(109,Pārtikas_tabula[PORCIJAS KOPĀ])","v":2393},{"$f":"SUBTOTAL(109,Pārtikas_tabula[PORCIJAS IZMAKSAS])","v":{"v":6.915706603622084,"d":"6.92 €"}},{"$f":"SUBTOTAL(109,Pārtikas_tabula[IZMAKSAS UZ BĒRNU])","v":{"v":7.252884190656953,"d":"7.25 €"}},{"$f":"SUBTOTAL(109,Pārtikas_tabula[IZMAKSAS UZ PIEAUGUŠO])","v":{"v":12.690089084110037,"d":"12.69 €"}}]

{"sheet":"Citas svarīgas lietas","index":3,"n_rows":30,"n_cols":5,"rows_kept":30,"merged":[[14,1,14,4],[22,1,22,4]]}
[]
[]
[null,"Citas svarīgas lietas"]
[]
[]
[null,"Aprīkojums un piederumi","Vērtība","Nopirkts","Piezīmes"]
[null,"Telpas/zāles noma",{"v":250,"d":"250.00 €"},"Jā"]
[null,"Galdauti",{"v":30,"d":"30.00 €"},"Jā","Noma"]
[null,"Galdi un krēsli",{"v":0,"d":"0.00 €"},null,"Iekļauts zāles īrē"]
[null,"Dzērienu salvetes",{"v":25,"d":"25.00 €"}]
[null,"Pusdienu salvetes",{"v":20,"d":"20.00 €"},null,"Noma"]
[null,"Galda piederumi",{"v":50,"d":"50.00 €"},null,"Noma"]
[null,"Stikla trauki",{"v":25,"d":"25.00 €"},null,"Noma"]
[null,"Kopā",{"$f":"SUBTOTAL(109,Tabula_1_budžets[Vērtība])","v":{"v":400,"d":"400.00 €"}}]
[]
[]
[null,"Rotājumi","Vērtība","Nopirkts","Piezīmes"]
[null,"Baloni",{"v":25,"d":"25.00 €"}]
[null,"Hēlija balons",{"v":50,"d":"50.00 €"},null,"Noma"]
[null,"Galda rotājumi",{"v":100,"d":"100.00 €"},"Jā","Kopā 10"]
[null,"Stikla vāzes",{"v":0,"d":"0.00 €"},null,"Aizņemšos no Ilzes"]
[null,"Kopā",{"$f":"SUBTOTAL(109,Tabula_2_budžets[Vērtība])","v":{"v":175,"d":"175.00 €"}}]
[]
[]
[null,"Citi","Vērtība","Nopirkts","Piezīmes"]
[null,"Ielūgumi",{"v":50,"d":"50.00 €"},"Jā"]
[null,"Pastmarkas",{"v":60,"d":"60.00 €"},"Jā"]
[null,"Fotogrāfs",{"v":125,"d":"125.00 €"},null,"2 stundas (no plkst. 14:00 līdz 16:00)"]
[null,"Ballītes atšķirības zīmes",{"v":50,"d":"50.00 €"}]
[null,"Kopā",{"$f":"SUBTOTAL(109,Tabula_3_budžets[Vērtība])","v":{"v":285,"d":"285.00 €"}}]

{"sheet":"Vietu plānojums","index":4,"n_rows":43,"n_cols":34,"rows_kept":43,"merged":[[35,0,35,17],[35,19,35,33]]}
["Vietu plānojums"]
{"$rows_empty":33}
[{"$nulls":33},"*1 rūts = apm. 1 kvafrātpēda"]
["Piezīmes",{"$nulls":18},{"$f":"\" Kopējais apstiprināto viesu skaits: \"&Apstiprinātie_viesi","v":" Kopējais apstiprināto viesu skaits: 46"}]
[{"$nulls":19},"Varat izmantot jebkuru no šiem galdu izkārtojumiem:"]
[{"$nulls":20},{"$f":"ROUNDUP(Apstiprinātie_viesi/6,0)&\" apaļi 54 collu galdi (6 vietas)\"","v":"8 apaļi 54 collu galdi (6 vietas)"}]
[{"$nulls":20},{"$f":"ROUNDUP(Apstiprinātie_viesi/8,0) &\" apaļi 60 collu galdi (8 vietas)\"","v":"6 apaļi 60 collu galdi (8 vietas)"}]
[{"$nulls":20},{"$f":"ROUNDUP(Apstiprinātie_viesi/10,0)&\" apaļi 72 collu galdi (10 vietas)\"","v":"5 apaļi 72 collu galdi (10 vietas)"}]
[{"$nulls":20},{"$f":"ROUNDUP(Apstiprinātie_viesi/6,0)& \" četrstūra 30x72 collu galdi (6 vietas)\"","v":"8 četrstūra 30x72 collu galdi (6 vietas)"}]
[{"$nulls":20},{"$f":"ROUNDUP(Apstiprinātie_viesi/8,0)&\" četrstūra 30x96 collu galdi (8 vietas)\"","v":"6 četrstūra 30x96 collu galdi (8 vietas)"}]
[{"$nulls":19},"(Vēlamais attālums starp galdiem: 42 collas)"]